Cogmind - Beta 10.2 @@@ ROGUE MODE // 2020.11.02 @ 19:58:28 Player: Vine Result: Destroyed by as-91619 with Assembled Maul Performance ------------- Evolutions (0) 0 Regions Visited (4) 800 Robots Destroyed (9) 45 Value Destroyed (67) 67 Prototype IDs (1) 20 Alien Tech Used (0) 0 Bonus (300) 300 TOTAL SCORE: 1232 Bonus ------- Aligned with FarCom 300 Cogmind --------- Core Integrity 0/250 Matter 291/300 Energy 99/100 System Corruption 17% Temperature Cool (0) Movement Core (50) Location -9/Mines Parts ------- > --- POWER (1) -------- (None) > --- PROPULSION (2) --- (None) > --- UTILITY (2) ------ (None) > --- WEAPON (2) ------- (None) > --- INVENTORY (4) ---- Ion Engine Small Storage Unit Sensor Array Peak State ------------ > --- POWER ------------ Ion Engine > --- PROPULSION ------- Wheel Wheel > --- UTILITY ---------- 0b10 Alert Chip Targeting Computer > --- WEAPON ----------- Small Laser Rocket Launcher > --- INVENTORY -------- Ion Engine Small Storage Unit Sensor Array [Rating: 13] Favorites ----------- Power Ion Engine Engine Ion Engine Propulsion Wheel Wheel Wheel Utility Targeting Computer Device Sensor Array Storage Small Storage Unit Processor Targeting Computer Weapon Small Laser Energy Gun Small Laser Launcher Rocket Launcher Build | -11 -10 -10 -10 -9 ------- Run | Scr Mat Min Exi Min Slots Evolved . | . . . . . Power . | . . . . . Propulsion . | . . . . . Utility . | . . . . . Weapon . | . . . . . Parts Attached 11 | 6 1 . 3 1 Power 1 | 1 . . . . Engine 1 | 1 . . . . Core . | . . . . . Reactor . | . . . . . Propulsion 2 | 2 . . . . Treads . | . . . . . Leg . | . . . . . Wheel 2 | 2 . . . . Hover . | . . . . . Flight . | . . . . . Utility 4 | 1 1 . 2 . Device 1 | . . . 1 . Storage 1 | 1 . . . . Processor 2 | . 1 . 1 . Hackware . | . . . . . Protection . | . . . . . Artifact . | . . . . . Weapon 4 | 2 . . 1 1 Energy Gun 3 | 2 . . 1 . Energy Cannon . | . . . . . Ballistic Gun . | . . . . . Ballistic Cannon . | . . . . . Launcher 1 | . . . . 1 Special Weapon . | . . . . . Impact Weapon . | . . . . . Slashing Weapon . | . . . . . Piercing Weapon . | . . . . . Special Melee Weapon . | . . . . . Unidentified Prototypes 1 | . . . 1 . Parts Lost 8 | . . . . 8 Power 1 | . . . . 1 Propulsion 2 | . . . . 2 Utility 2 | . . . . 2 Weapon 3 | . . . . 3 Highest Loss Streak 8 | . . . . 8 Average Slot Usage (%) 97 | . 92 100 100 78 Engine 13 | . 14 14 14 10 Wheel 27 | . 28 28 28 19 Device 3 | . . . 5 . Storage 8 | . 14 14 7 . Processor 15 | . 7 14 15 24 Energy Gun 27 | . 28 28 28 19 Naked Turns 6 | . . . . 6 Heaviest Build 12 | 12 12 12 12 9 Greatest Support 20 | 20 20 20 20 20 Greatest Overweight (x) 2 | . . . . 2 Average Overweight (x) . | . . . . . Largest Inventory Capacity 6 | 6 6 6 6 4 Average Capacity 5 | 5 6 6 5 4 Most Carried 6 | 3 4 5 6 4 Average Carried 3 | 1 2 4 4 3 Final Capacity 6 | 6 6 6 4 4 Final Carried 5 | 2 4 5 4 3 Class Distribution -------------------- 100% | Mutant Dominant Class ---------------- Mutant | -10/Materials Mutant | -10/Mines Mutant | -10/Exiles Mutant | -9/Mines Resources | -11 -10 -10 -10 -9 ----------- Run | Scr Mat Min Exi Min Matter Collected 342 | 220 . 122 . . Remotely . | . . . . . Salvage Created 122 | . . 84 . 38 Parts 4 | . . 4 . . Haulers Intercepted . | . . . . . Recyclers Shooed . | . . . . . Parts Field Recycled . | . . . . . Retrieved Matter . | . . . . . Parts Self-Destructed . | . . . . . Prevented . | . . . . . Kills | -11 -10 -10 -10 -9 ------- Run | Scr Mat Min Exi Min Combat Hostiles Destroyed 9 | . . 3 . 6 Guns 3 | . . 2 . 1 AOE 6 | . . 1 . 5 Classes Destroyed 3 | . . 2 . 1 Swarmer 2 | . . 2 . . Grunt 1 | . . 1 . . Assembled 6 | . . . . 6 Best Kill Streak 5 | . . 2 . 5 Combat Bots Only 5 | . . 2 . 5 Max Kills in Single Turn 3 | . . 1 . 3 Gunslinging . | . . . . . Exploded 3 | . . 1 . 3 Melee . | . . . . . Uniques/NPCs Destroyed . | . . . . . Combat | -11 -10 -10 -10 -9 -------- Run | Scr Mat Min Exi Min Damage Taken 626 | . . 108 . 518 Core 264 | . . 67 . 197 Absorbed by Shields . | . . . . . Core Remaining (%) 100 | 100 . . . . Volleys Fired 15 | . . 7 . 8 Largest 2 | . . 2 . 2 Hottest 80 | . . 80 . 80 Shots Fired 29 | . . 14 . 15 Gun 25 | . . 14 . 11 Cannon . | . . . . . Launcher 4 | . . . . 4 Special . | . . . . . Kinetic . | . . . . . Thermal 14 | . . 7 . 7 Explosive 4 | . . . . 4 Electromagnetic 11 | . . 7 . 4 Robot Hit Streak 5 | . . 3 . 5 Robot Miss Streak 3 | . . 3 . 1 Penetration Max . | . . . . . Secondary Targets . | . . . . . Shots Hit Robots 15 | . . 7 . 8 Core Hits 17 | . . 3 . 14 Critical Hits . | . . . . . Critical Kills . | . . . . . Critical Parts Destroyed . | . . . . . Melee Attacks . | . . . . . Impact . | . . . . . Slashing . | . . . . . Piercing . | . . . . . Sneak Attacks . | . . . . . Combat Hostiles . | . . . . . Follow-up Attacks . | . . . . . Damage Inflicted 453 | . . 135 . 318 Guns 134 | . . 55 . 79 Cannons . | . . . . . Explosions 313 | . . 80 . 233 Melee . | . . . . . Ramming 6 | . . . . 6 Kinetic . | . . . . . Thermal 125 | . . 80 . 45 Explosive 233 | . . . . 233 Electromagnetic 89 | . . 55 . 34 Impact . | . . . . . Slashing . | . . . . . Piercing . | . . . . . Highest Corruption 17 | . . . . 17 Average Corruption 8 | . . . . 8 Corruption Purged . | . . . . . Effects 2 | . . . . 2 Energy Discharges 1 | . . . . 1 Misdirections 1 | . . . . 1 Overload Shots . | . . . . . Overflow Damage 16 | . . 16 . . Projectiles . | . . . . . Explosions 16 | . . 16 . . Melee . | . . . . . Knockbacks . | . . . . . Impact . | . . . . . Kinetic . | . . . . . Secondary . | . . . . . Self-Inflicted Damage 71 | . . . . 71 Shots 2 | . . . . 2 Rammed 8 | . . . . 8 Targets Rammed 8 | . . . . 8 Kicked . | . . . . . Crushed . | . . . . . Highest Temperature 94 | . . 90 . 94 Average Temperature 41 | . . 45 . 37 Received Heat Transfer 87 | . . 27 . 60 Siege Activations . | . . . . . Robots Corrupted . | . . . . . Combat Hostiles . | . . . . . Parts Fried . | . . . . . Impact Corruptions . | . . . . . Robots Melted . | . . . . . Combat Hostiles . | . . . . . Parts Melted . | . . . . . Heat Transferred 200 | . . 100 . 100 Parts Sabotaged . | . . . . . Parts Stolen . | . . . . . Parts Stripped . | . . . . . Power Chain Reactions 1 | . . 1 . . Missiles Intercepted . | . . . . . Alert | -11 -10 -10 -10 -9 ------- Run | Scr Mat Min Exi Min Peak Influence 80 | . . 80 . . Initial . | . . . . . Average 17 | . . 48 . . Maximum Alert Level . | . . . . . Low Security (%) 100 | 100 100 100 . 100 Level 1 . | . . . . . Level 2 . | . . . . . Level 3 . | . . . . . Level 4 . | . . . . . Level 5 . | . . . . . High Security . | . . . . . Max Security . | . . . . . Squads Dispatched . | . . . . . Investigation . | . . . . . Extermination . | . . . . . Reinforcement . | . . . . . Assault . | . . . . . Garrison . | . . . . . Intercept . | . . . . . Construction Impeded . | . . . . . Haulers Reinforced . | . . . . . Stealth | -11 -10 -10 -10 -9 --------- Run | Scr Mat Min Exi Min Distress Signals . | . . . . . Communications Jammed . | . . . . . Distress Signals . | . . . . . Times Spotted 13 | . . 5 . 8 Peak Tracking Total 8 | . . 3 . 8 Tactical Retreats 1 | . . . . 1 Traps | -11 -10 -10 -10 -9 ------- Run | Scr Mat Min Exi Min Traps Triggered . | . . . . . Indirectly . | . . . . . Trap Hack Attempts . | . . . . . Triggered . | . . . . . Disarmed . | . . . . . Reprogrammed . | . . . . . Reused . | . . . . . Traps Extracted . | . . . . . Installed . | . . . . . Triggered . | . . . . . Machines | -11 -10 -10 -10 -9 ---------- Run | Scr Mat Min Exi Min Machines Disabled . | . . . . . Max in Single Turn . | . . . . . Machines Sabotaged . | . . . . . Garrisons Compromised . | . . . . . Overloaded Fab Kills . | . . . . . Fab Network Shutdowns . | . . . . . Hacking | -11 -10 -10 -10 -9 --------- Run | Scr Mat Min Exi Min Machines Accessed 5 | . 1 . 4 . Terminals 1 | . 1 . . . Fabricators . | . . . . . Repair Stations . | . . . . . Recycling Units . | . . . . . Scanalyzers . | . . . . . Garrison Access . | . . . . . Total Hacks 50 | . 1 . 49 . Successful 50 | . 1 . 49 . Failed . | . . . . . Catastrophic . | . . . . . Database Lockouts . | . . . . . Manual 2 | . . . 2 . Terminals 1 | . 1 . . . Fabricators . | . . . . . Repair Stations . | . . . . . Recycling Units . | . . . . . Scanalyzers . | . . . . . Garrison Access . | . . . . . Terminal Hacks 50 | . 1 . 49 . Record 50 | . 1 . 49 . Fabricator Hacks . | . . . . . Repair Station Hacks . | . . . . . Recycling Unit Hacks . | . . . . . Scanalyzer . | . . . . . Garrison Access Hacks . | . . . . . Unauthorized Hacks . | . . . . . Terminals . | . . . . . Fabricators . | . . . . . Repair Stations . | . . . . . Recycling Units . | . . . . . Scanalyzers . | . . . . . Garrison Access . | . . . . . Data Cores Recovered . | . . . . . Used . | . . . . . Hacking Detections . | . . . . . Full Trace Events . | . . . . . Feedback Events . | . . . . . Feedback Blocked . | . . . . . Robot Schematics Acquired . | . . . . . Robots Built . | . . . . . Matter . | . . . . . Time . | . . . . . Total Robot Build Rating . | . . . . . Part Schematics Acquired . | . . . . . Parts Built . | . . . . . Matter . | . . . . . Time . | . . . . . Total Part Build Rating . | . . . . . Parts Repaired . | . . . . . Time . | . . . . . Parts Recycled . | . . . . . Recycled Matter . | . . . . . Retrieved Matter . | . . . . . Retrieved Components . | . . . . . Parts Scanalyzed . | . . . . . Part Schematics Acquired . | . . . . . Parts Damaged . | . . . . . Bothacking | -11 -10 -10 -10 -9 ------------ Run | Scr Mat Min Exi Min Used RIF Installer . | . . . . . Robots Hacked . | . . . . . Non-combat . | . . . . . Combat . | . . . . . Robot Hacks Applied . | . . . . . Relay Couplers Released . | . . . . . Robots Rewired . | . . . . . Allies Hacked . | . . . . . Hacks Repelled . | . . . . . Allies | -11 -10 -10 -10 -9 -------- Run | Scr Mat Min Exi Min Total Allies . | . . . . . Largest Group . | . . . . . Highest-Rated Group . | . . . . . Highest-Rated Ally . | . . . . . Total Orders . | . . . . . Ally Attacks . | . . . . . Total Damage . | . . . . . Kills . | . . . . . Allies Corrupted . | . . . . . Allies Melted . | . . . . . Intel | -11 -10 -10 -10 -9 ------- Run | Scr Mat Min Exi Min Robot Analysis Total . | . . . . . Derelict Logs Recovered 1 | . . 1 . . Drone Launches . | . . . . . Drone Recoveries . | . . . . . Exploration | -11 -10 -10 -10 -9 ------------- Run | Scr Mat Min Exi Min Turns Passed 873 | 57 76 119 543 78 Spaces Moved 980 | 52 90 117 662 59 Core 22 | 11 . . . 11 Treads . | . . . . . Legs . | . . . . . Wheels 958 | 41 90 117 662 48 Hover . | . . . . . Flight . | . . . . . Fastest Speed 50 | 50 80 80 80 50 Average Speed 79 | 73 80 80 80 77 Slowest Speed 150 | 80 80 80 80 150 Overloaded Moves . | . . . . . Propulsion Burnouts . | . . . . . Robots Hopped . | . . . . . Cave-ins Triggered . | . . . . . Exploration Rate (%) 33 | 4 26 31 93 13 Regions Visited 4 Branch Regions 3 Pre-discovered Areas 2 | . . 1 1 . Known Exits Taken . | . . . . . Unknown Exits Taken 4 | 1 1 1 1 . Scrap Searched . | . . . . . Spaces Dug . | . . . . . Terrain Destroyed 34 | . . 3 . 31 Melee . | . . . . . Projectile . | . . . . . AOE 34 | . . 3 . 31 Terrain Rammed . | . . . . . Walls Destroyed . | . . . . . Machines Disabled . | . . . . . Actions | -11 -10 -10 -10 -9 --------- Run | Scr Mat Min Exi Min Total 1043 | 70 93 128 676 76 Wait 12 | 5 . 2 5 . Move 976 | 51 89 116 661 59 Hop . | . . . . . Pick Up 16 | 8 3 2 3 . Fast Attach . | . . . . . Attach 9 | 6 1 . 1 1 Detach . | . . . . . Swap 2 | . . . 2 . Drop 5 | . . 1 4 . Fire 15 | . . 7 . 8 Melee . | . . . . . Ram 8 | . . . . 8 Kick . | . . . . . Crush . | . . . . . Escape Stasis . | . . . . . Rewire . | . . . . . Trap . | . . . . . Miscellaneous . | . . . . . Route ------- -11/Scrapyard -10/Materials -10/Mines -10/Exiles (discovered 2 exits: [*Min x2]) -9/Mines History --------- Turn | Location | Event 15 | -11/Scrapyard | Discovered new exit (range 14) 58 | -11/Scrapyard | Entered Materials 116 | -10/Materials | Discovered new exit (range 16) 134 | -10/Materials | Entered Mines 185 | -10/Mines | A weapon hastily lodged in a ceiling crevice suddenly fell to the ground 203 | -10/Mines | Received a Rocket Launcher from a helpful Derelict 249 | -10/Mines | Deemed a non-threat by the Exiles lab entrance 250 | -10/Mines | Discovered new exit (range 5) 253 | -10/Mines | Entered Exiles 269 | -10/Exiles | Discovered new exit (range 15) 289 | -10/Exiles | Met 8R-AWN 301 | -10/Exiles | Met EX-HEX 307 | -10/Exiles | Build established: Mutant 333 | -10/Exiles | Met EX-DEC 393 | -10/Exiles | Visited The Gauntlet 510 | -10/Exiles | Discovered new exit (range 12) 582 | -10/Exiles | Met EX-BIN 605 | -10/Exiles | Aligned with FarCom system 605 | -10/Exiles | Given EX-Vault access code 641 | -10/Exiles | Opened EX-Vault 645 | -10/Exiles | Found Prototype Processor 670 | -10/Exiles | Warned to stay clear of 0b10 Research branches 695 | -10/Exiles | Learned location of Zion (-7) 743 | -10/Exiles | Identified 0b10 Alert Chip 796 | -10/Exiles | Left Exiles lab with 0b10 Alert Chip 796 | -10/Exiles | Entered Mines 797 | -9/Mines | Met a Derelict bent on vengeance 807 | -9/Mines | Assembled infested the area 812 | -9/Mines | Assisted by a Guerilla fighting off Assembled 848 | -9/Mines | Core integrity fell below 50% 869 | -9/Mines | Core integrity fell below 20% 869 | -9/Mines | System corruption reached 10% 874 | -9/Mines | Destroyed by as-91619 with Assembled Maul Last Messages --------------- 00862_ Slammed into as-91619. 00862_ Destabilizing: System interference. 00862_ Rocket Launcher temporarily disabled. 00863_ Slammed into as-91619. 00863_ Targeting Computer permanently disabled. 00863_ Destabilizing: Short circuit. 00864_ Slammed into as-91619. 00864_ Rocket Launcher permanently disabled. 00864_ Destabilizing: Short circuit. 00865_ Knocked back. 00866_ Slammed into as-91619. 00867_ The unstable cave ceiling collapses. 00867_ Slammed into as-91619. 00868_ Broken Targeting Computer destroyed. 00868_ Broken Rocket Launcher destroyed. 00868_ System corrupted by crushing effect (+2). 00868_ System corrupted by crushing effect (+5). 00868_ Knocked back. 00872_ Slammed into as-91619. 00873_ Destabilizing: System corrupted (+1). Map ----- +----------------------------------------------------+ | ?????????????????????????????????????????????????? | | ?????????????????????????????????????????????????? | | ?????????????????????????????????????????????????? | | ?????????????????????????????????????????????????? | | ?????????????????????????????????????????????????? | | ?????????????????????????? ??????????????????????? | | ????????????????????????## ??????????????????????? | | ???????????????????????## #?????????????????????? | | ??????????????????###?## ?????????????????????? | | ?????????????????## ## ?????????????????????? | | ?????????????????# #????????????????????? | | ???????????????##? #????????????????????? | | ??????????????## ?? ?????????????????????? | | ??????????????# ?? ?????????????????????? | | ?????????????## ???? ?????????????????????? | | ???????????### ????? #?????????????????????? | | ??????????## ?????# ##????????????????????? | | ?????????## ??????# ##???????????????????? | | ?????????# #????## #######?????????????? | | ?????????# ##### #?????????????? | | ????????## ## ###### #?????????????? | | ????????? ###????# #?????????????? | | ???????????????## #??????# #???????###???? | | ????????????????## % ####???# #?????? ????? | | ?????????????????# a ##### ####### #?????? | | ?????????????????# @ # % #?????? | | ?????????????????### # ########## #???? | | ??????????????????#### ###?????????## #???? | | ?????????????????????## #??????????????#???? | | ??????????????????????# #??????????????????? | | ??????????????????????# #??????????????????? | | ?????????????????????# ##??????????????????? | | ?????????????????????# # #???????????????????? | | ?????????????????????## ####???????????????????? | | ??????????????????????# ###??????????????????????? | | ??????????????????????# ?????????????????????????? | | ?????????????????????? ?????????????????????????? | | ?????????????????????###?????????????????????????? | | ?????????????????????????????????????????????????? | | ?????????????????????????????????????????????????? | | ?????????????????????????????????????????????????? | | ?????????????????s???????????????????????????????? | | ????????????????s????????????????????????????????? | | ?????????????????????????????????????????????????? | | ?????????????????????????????????????????????????? | | ?????????????????????????????????????????????????? | | ?????????????????????????????????????????????????? | | ?????????????????????????????????????????????????? | | ?????????????????????????????????????????????????? | | ?????????????????????????????????????????????????? | +----------------------------------------------------+ Best States ------------- Heat Dissipation 25 Energy Generation 10 Energy Capacity 250 Matter Stores 300 Matter Capacity 300 Sight Range 16 Robot Scan Range 10 Terrain Scan Density 10 Evasion (%) 50 Targeting Accuracy 5 Item Schematics ----------------- None Robot Schematics ------------------ None Fabricated ------------ Nothing Alien Tech Used ----------------- None Achievements -------------- None Challenges ------------ None Game ------ Seed ThiefPlasmaBlade Manual? 0 Play Time 00:22:22 Cumulative 5.7 hours Start 2020.11.02 @ 19:35:55 End 2020.11.02 @ 19:58:28 Sessions 1 Manual Loads 0 Difficulty Rogue Special Mode None Game No. 9 Rogue 9 Adventurer 0 Explorer 0 Win Type - Total 0 Types 0/0/0/0/0/0/0/0/0 Lore% 12 Gallery% 12 Achievement% 10 Wizard Run 0 Options --------- ASCII 0 Keyboard 0 Movement Mouse Keybinds 0 Fullscreen 1 Font 24/Smallcaps Map View 76x50 Tactical HUD 1 Map Filters NONE Filters NONE Steam 1 RUN: 2fdf34ac-0a8e-4350-a54b-a37559da8d4c